bitfinex-derivatives/quotes_SOLF0:USTF0_20260204
["timestamp","ask_amount","ask_price","bid_price","bid_amount"]
[1770201867515,62.0,96.97,96.941,9.2974]
[1770201870211,62.0,96.97,96.903,82.38]
[1770201870212,5.69001151,96.969,96.903,82.38]
[1770201870413,5.69001151,96.969,96.91,3.40850817]
[1770201871020,5.69001151,96.967,96.91,3.40850817]
[1770201871822,5.69001151,96.967,96.931,9.2983]
[1770201874620,5.69918504,96.965,96.931,9.2983]
[1770201878021,5.69918504,96.965,96.94,9.2975]
[1770201879733,5.71277302,96.977,96.947,9.2968]
[1770201880030,5.71080569,96.995,96.947,9.2968]
[1770201880229,5.71080569,96.993,96.947,9.2968]
[1770201880427,5.71080569,96.991,96.947,9.2968]
[1770201880629,13.24573851,96.99,96.947,9.2968]
[1770201880925,7.53493282,96.989,96.947,9.2968]
[1770201881129,7.53493282,96.988,96.947,9.2968]
[1770201881322,5.71080569,96.986,96.947,9.2968]
[1770201881528,5.71080569,96.984,96.947,9.2968]
[1770201881726,7.53493282,96.985,96.947,9.2968]
[1770201881727,5.71080569,96.982,96.947,9.2968]
[1770201888331,62.0,96.97,96.94,9.2975]
[1770201888529,5.75659782,96.969,96.91,3.40850817]
[1770201890234,5.76916605,96.965,96.923,9.2991]
[1770201890729,5.76920197,96.963,96.923,9.2991]
[1770201890928,5.76920197,96.963,96.9,3.40850817]
[1770201890929,5.76920197,96.963,96.915,9.2998]
[1770201891129,5.76920197,96.959,96.88,3.40850817]
[1770201891533,5.76920197,96.949,96.896,9.3017]
[1770201891938,5.76920197,96.949,96.88,3.40850817]
[1770201892631,5.76693674,96.962,96.91,3.40850817]
[1770201892837,5.76693674,96.974,96.91,3.40850817]
[1770201893024,5.76693674,96.974,96.925,9.2989]
[1770201893229,5.76693674,96.968,96.925,9.2989]
[1770201893633,5.76693674,96.968,96.932,9.2982]
[1770201896637,5.76693674,96.968,96.94,9.2975]
[1770201897735,5.76693674,96.968,96.929,9.2985]
[1770201905850,5.76693674,96.968,96.938,9.2977]
[1770201916852,5.76693674,96.968,96.93,9.2984]
[1770201917056,5.56086037,96.959,96.89,3.40855684]
[1770201918760,5.56086037,96.959,96.926,9.2988]
[1770201919659,5.56086037,96.959,96.932,9.2982]
[1770201922758,65.40855684,96.97,96.932,9.2982]
[1770201922956,65.40855684,96.97,96.892,18.6042]
[1770201922957,62.0,96.97,96.91,3.40855684]
[1770201923957,5.57068553,96.974,96.95,9.2965]
[1770201924159,9.60599219,97.021,96.95,9.2965]
[1770201924160,5.59824181,96.986,96.95,9.2965]
[1770201925065,62.0,96.98,96.95,9.2965]
[1770201926462,5.57818513,96.979,96.942,9.2972]
[1770201928265,5.57818513,96.979,96.949,9.2966]
[1770201928657,5.57818513,96.979,96.92,3.40855684]
[1770201929868,5.57818513,96.979,96.954,9.2961]
[1770201931958,5.57818513,96.979,96.944,9.2971]
[1770201932164,5.39720938,96.969,96.9,3.40855684]
[1770201932565,5.39720938,96.959,96.925,9.2989]
[1770201932968,5.39720938,96.949,96.89,3.40855684]
[1770201933267,5.39720938,96.949,96.915,9.2999]
[1770201934668,3.40855684,96.96,96.915,9.2999]
[1770201934865,5.45454112,96.959,96.915,9.2999]
[1770201937169,5.45454112,96.959,96.924,9.299]
[1770201939277,5.45454112,96.959,96.916,9.2997]
[1770201941268,5.45454112,96.959,96.923,9.2991]
[1770201947680,5.40148638,96.949,96.914,9.3]
[1770201947880,5.40148638,96.949,96.88,3.40855684]
[1770201948079,5.40148638,96.939,96.874,12.85487615]
[1770201948280,5.40148638,96.939,96.903,9.301]
[1770201952581,5.40148638,96.939,96.909,9.3004]
[1770201953081,5.40148638,96.939,96.89,3.40855684]
[1770201954083,5.40148638,96.939,96.904,9.3009]
[1770201956484,5.41523428,96.953,96.904,9.3009]
[1770201958583,5.41579794,96.951,96.904,9.3009]
[1770201961388,5.41665461,96.939,96.875,12.85487615]
[1770201961587,5.41665461,96.939,96.785,144.8594]
[1770201961588,5.41665461,96.899,96.852,12.85487615]
[1770201961785,5.41665461,96.889,96.821,12.85487615]
[1770201961982,5.41665461,96.889,96.82,3.41013212]
[1770201962283,5.4146837,96.892,96.83,3.41013212]
[1770201963888,3.41013212,96.9,96.83,3.41013212]
[1770201963889,5.37588363,96.889,96.837,9.3074]
[1770201964588,62.0,96.88,96.837,9.3074]
[1770201966485,62.0,96.88,96.829,9.3082]
[1770201966486,5.38155418,96.879,96.829,9.3082]
[1770201966689,5.38155418,96.878,96.81,3.41013212]
[1770201966986,5.38155418,96.859,96.8,3.41013212]
[1770201968093,5.38155418,96.859,96.81,3.41013212]
[1770201968488,5.38155418,96.859,96.8,3.41013212]
[1770201968692,5.38155418,96.859,96.803,9.3106]
[1770201970190,5.38155418,96.859,96.811,9.3098]
[1770201970388,5.39403146,96.873,96.82,3.41013212]
[1770201970891,5.39403146,96.873,96.823,9.3087]
[1770201972895,5.39403146,96.873,96.82,3.41013212]
[1770201972896,5.39403146,96.873,96.833,9.3077]
[1770201973096,5.39403146,96.873,96.82,3.41013212]
[1770201974596,5.39403146,96.873,96.83,3.41013212]
[1770201975291,5.39403146,96.873,96.82,3.41013212]
[1770201975489,5.39403146,96.873,96.822,9.3088]
[1770201975799,5.39403146,96.873,96.82,3.41013212]
[1770201976198,5.39403146,96.873,96.784,18.6249]
[1770201976199,5.39403146,96.873,96.837,9.3073]
[1770201976394,62.0,96.88,96.837,9.3073]
[1770201976594,5.39737799,96.879,96.83,3.41013212]
[1770201977100,5.39737799,96.879,96.832,9.3078]
[1770201980003,5.39737799,96.879,96.839,9.3072]
[1770201980504,62.0,96.88,96.773,45.65197446]
[1770201980505,62.0,96.88,96.846,9.3065]
[1770201980700,5.41940714,96.896,96.85,3.41013212]
[1770201981203,5.41931934,96.889,96.83,3.41013212]
[1770201981402,5.41931934,96.889,96.82,3.41013212]
[1770201981598,5.41931934,96.869,96.81,3.41013212]
[1770201982707,5.41931934,96.869,96.818,9.3092]
[1770201983306,5.41931934,96.869,96.81,3.41013212]
[1770201983701,3.41013212,96.87,96.832,9.3078]
[1770201983702,62.0,96.86,96.832,9.3078]
[1770201983901,5.46776435,96.873,96.832,9.3078]
[1770201986111,3.41013212,96.87,96.832,9.3078]
[1770201986411,5.48439717,96.869,96.832,9.3078]
[1770201986906,62.0,96.86,96.824,9.3086]
[1770201987310,5.48439717,96.869,96.824,9.3086]
[1770201988201,5.48439717,96.869,96.826,9.3085]
[1770201989507,5.48439717,96.869,96.834,9.3076]
[1770201990213,5.48439717,96.869,96.826,9.3084]
[1770201990414,62.0,96.86,96.81,3.41013212]
[1770201990709,5.47056709,96.859,96.81,3.41013212]
[1770201990910,5.47056709,96.859,96.807,9.3102]
[1770201991118,5.47056709,96.849,96.79,3.41013212]
[1770201991413,5.47056709,96.849,96.805,9.3105]
[1770201992608,9.3056,96.856,96.805,9.3105]
[1770201992808,62.0,96.86,96.81,3.41013212]
[1770201993014,5.47267957,96.859,96.81,3.41013212]
[1770201993406,5.47267957,96.859,96.819,9.3091]
[1770201993609,5.47267957,96.849,96.79,3.41013212]
[1770201994815,5.51471837,96.848,96.795,9.3113]
[1770201995519,65.41013212,96.86,96.79,3.41013212]
[1770201995520,5.51471837,96.846,96.79,3.41013212]
[1770201996316,5.51471837,96.846,96.768,82.44]
[1770201996510,5.51471837,96.846,96.8,3.41013212]
[1770201996712,9.3071,96.841,96.8,3.41013212]
[1770201998118,5.51471837,96.846,96.8,12.72103212]
[1770201998718,5.61843857,96.843,96.8,3.41013212]
[1770202000618,5.61843857,96.843,96.801,9.3108]
[1770202002520,5.66440131,96.839,96.78,3.41013212]
[1770202002720,2.39588088,96.839,96.78,3.41013212]
[1770202002920,3.41013212,96.83,96.77,3.41013212]
[1770202003417,9.3074,96.837,96.78,9.3128]
[1770202004012,3.41013212,96.84,96.753,1.79745567]
[1770202004013,9.3065,96.846,96.79,3.41013212]
[1770202004323,3.41013212,96.85,96.79,3.41013212]
[1770202004717,4.06062494,96.849,96.79,3.41013212]
[1770202005220,4.06062494,96.845,96.79,3.41013212]
[1770202006622,4.06673915,96.835,96.79,3.41013212]
[1770202007018,3.41013212,96.83,96.77,3.41013212]
[1770202007214,4.06673915,96.819,96.75,3.41013212]
[1770202007413,4.06673915,96.806,96.75,3.41013212]
[1770202008014,4.06673915,96.806,96.601,45.00272519]
[1770202008015,4.05991262,96.788,96.723,1.79817547]
[1770202008218,4.05991262,96.788,96.73,3.41013212]
[1770202008413,4.05991262,96.767,96.693,1.79853327]
[1770202008614,4.05991262,96.767,96.72,3.41013212]
[1770202008812,4.05991262,96.767,96.693,1.79853327]
[1770202009018,4.05991262,96.756,96.696,9.3209]
[1770202009420,4.05991262,96.756,96.71,3.41013212]
[1770202009621,4.05991262,96.756,96.696,9.3209]
[1770202010223,4.05991262,96.756,96.72,3.41013212]
[1770202010519,4.05991262,96.756,96.71,3.41013212]
[1770202010919,4.05991262,96.756,96.673,1.79905395]
[1770202011119,62.0,96.75,96.71,3.41013212]
[1770202014628,62.0,96.75,96.71,3.42322875]
[1770202014827,4.05991262,96.756,96.72,3.42322875]
[1770202017129,4.05991262,96.756,96.73,3.42322875]
[1770202017727,62.0,96.77,96.74,3.42322875]
[1770202017933,4.11609676,96.786,96.74,3.42322875]
[1770202018429,4.11609676,96.786,96.75,3.42322875]
[1770202018628,4.11609676,96.786,96.74,3.42322875]
[1770202019025,4.09303655,96.8,96.685,31.0]
[1770202019232,4.09303655,96.8,96.76,3.42322875]
[1770202019432,4.09303655,96.789,96.73,3.42322875]
[1770202020138,9.3132,96.777,96.73,3.42322875]
[1770202020737,62.0,96.77,96.73,3.42322875]
[1770202021334,3.94956343,96.805,96.75,3.42322875]
[1770202021533,3.94956343,96.805,96.76,3.42322875]
[1770202023634,3.94956343,96.805,96.761,0.24611554]
[1770202023833,3.94956343,96.805,96.77,3.42322875]
[1770202024431,62.0,96.8,96.77,3.42322875]
[1770202024639,3.94956343,96.805,96.77,3.42322875]
[1770202025940,3.94956343,96.805,96.761,0.24611554]
[1770202027137,3.83718996,96.819,96.761,0.24611554]
[1770202027739,3.83718996,96.809,96.761,0.24611554]
[1770202029332,3.83718996,96.809,96.76,3.42322875]
[1770202029637,3.83718996,96.809,96.751,0.32519745]
[1770202029844,3.83718996,96.839,96.8,3.42322875]
[1770202030336,3.83718996,96.856,96.81,3.42322875]
[1770202030642,3.83718996,96.879,96.82,3.42322875]
[1770202030836,62.0,96.87,96.821,0.29483042]
[1770202031034,3.83718996,96.889,96.831,0.29483042]
[1770202031337,3.83718996,96.889,96.85,3.42322875]
[1770202031641,3.42322875,96.91,96.85,3.42322875]
[1770202031836,3.42322875,96.91,96.772,144.8796]
[1770202031837,3.83718996,96.943,96.89,3.42322875]
[1770202032031,3.83718996,96.943,96.9,3.42322875]
[1770202032334,7.36434975,96.93,96.87,3.42322875]
[1770202032536,3.941121,96.929,96.87,3.42322875]
[1770202032736,3.941121,96.941,96.89,3.42322875]
[1770202032941,3.941121,96.941,96.9,3.42322875]
[1770202033540,3.941121,96.939,96.88,3.42322875]
[1770202033743,3.42322875,96.92,96.87,3.42322875]
[1770202034139,62.0,96.91,96.87,3.42322875]
[1770202034438,62.0,96.91,96.85,8.52907818]
[1770202034640,62.0,96.91,96.862,9.3049]
[1770202037143,62.0,96.91,96.872,9.304]
[1770202039140,62.0,96.91,96.881,9.3031]
[1770202041338,3.941121,96.929,96.881,9.3031]
[1770202042236,62.0,96.92,96.881,9.3031]
[1770202046243,62.0,96.92,96.85,8.52907818]
[1770202047849,65.96690435,96.92,96.881,9.3031]
[1770202048548,3.96690435,96.919,96.881,9.3031]
[1770202048749,3.96690435,96.919,96.872,9.304]
[1770202051851,3.96690435,96.919,96.879,9.3033]
[1770202061158,3.96690435,96.919,96.871,9.3041]
[1770202062860,3.96690435,96.919,96.878,9.3035]
[1770202066053,3.96690435,96.919,96.884,9.3028]
[1770202080870,3.96690435,96.919,96.856,12.85487615]
[1770202081070,3.93281053,96.909,96.85,3.41136933]
[1770202081273,3.93281053,96.899,96.84,3.41136933]
[1770202081462,3.93281053,96.899,96.852,9.3059]
[1770202081666,3.93281053,96.899,96.85,3.41136933]
[1770202082269,3.9403071,96.893,96.842,9.3069]
[1770202083670,3.9403071,96.893,96.85,3.41136933]
[1770202084671,3.9403071,96.893,96.852,9.3059]
[1770202089682,3.9403071,96.893,96.843,9.3067]
[1770202090378,3.9403071,96.893,96.851,9.306]
[1770202091380,4.01121392,96.906,96.86,3.41136933]
[1770202091578,4.01121392,96.919,96.87,3.41136933]
[1770202092780,62.0,96.92,96.88,3.41136933]
[1770202093286,62.0,96.92,96.87,3.41136933]
[1770202093486,62.0,96.92,96.88,3.41136933]
[1770202094082,4.06369375,96.919,96.873,9.3039]
[1770202094477,4.06369375,96.909,96.864,9.64342367]
[1770202094687,4.06369375,96.897,96.842,9.64342367]
[1770202094883,4.06369375,96.889,96.837,9.64342367]
[1770202095081,4.06369375,96.889,96.833,9.64342367]
[1770202095279,4.06369375,96.889,96.832,9.64342367]
[1770202095676,4.04806419,96.888,96.833,9.3077]
[1770202096789,4.04806419,96.886,96.833,9.3077]
[1770202097582,4.04806419,96.886,96.84,9.307]
[1770202100793,4.04806419,96.886,96.847,9.3064]
[1770202101693,4.04806419,96.886,96.84,3.41136933]
[1770202105090,4.04806419,96.886,96.843,9.3068]
[1770202111595,4.05311306,96.884,96.835,9.3076]
[1770202112796,9.3031,96.882,96.835,9.3076]
[1770202113301,4.05215295,96.909,96.852,9.3059]
[1770202114799,9.3015,96.899,96.852,9.3059]
[1770202115194,4.05215295,96.909,96.861,9.305]
[1770202115998,4.05215295,96.909,96.871,9.3041]
[1770202116797,4.05928949,96.918,96.871,9.3041]
[1770202122409,3.67014354,96.918,96.891,0.10848738]
[1770202122598,3.41136933,96.95,96.901,0.10848738]
[1770202123600,62.0,96.94,96.89,3.41136933]
[1770202123809,62.0,96.94,96.891,9.3021]
[1770202124012,9.2973,96.942,96.891,9.3021]
[1770202124405,3.89993066,96.949,96.891,0.07093607]
[1770202124713,144.5186,97.014,96.876,0.07093607]
[1770202124714,3.89993066,96.929,96.876,0.07093607]
[1770202125312,3.89993066,96.927,96.878,9.37433607]
[1770202125708,3.89993066,96.927,96.879,0.07093607]
[1770202125912,3.89993066,96.927,96.88,3.41136933]
[1770202126608,3.94021509,96.925,96.88,12.71466933]
[1770202126917,3.94021509,96.925,96.88,3.41136933]
[1770202127107,62.0,96.91,96.88,3.41136933]
[1770202132413,3.89791808,96.914,96.877,0.02139754]
[1770202133317,3.89791808,96.914,96.877,9.32489754]
[1770202134320,3.89791808,96.914,96.877,9.3035]
[1770202134913,3.89791808,96.914,96.88,3.41186949]
[1770202135117,3.89791808,96.914,96.884,9.3029]
[1770202135518,3.89791808,96.914,96.89,3.41186949]
[1770202136417,3.89791808,96.914,96.884,9.3029]
[1770202138626,3.89791808,96.914,96.88,3.41186949]
[1770202139524,3.89791808,96.914,96.882,9.3031]
[1770202140523,3.89791808,96.914,96.889,9.3024]
[1770202140923,3.89791808,96.914,96.88,3.41186949]
[1770202143430,62.0,96.9,96.88,3.41186949]
[1770202144328,62.0,96.9,96.878,9.3034]
[1770202144528,62.0,96.9,96.88,3.41186949]
[1770202145629,62.0,96.9,96.882,9.3031]
[1770202146828,3.89791808,96.914,96.882,9.3031]
[1770202147930,3.89791808,96.914,96.851,0.06972126]
[1770202148731,3.90120754,96.909,96.859,9.3052]
[1770202149330,3.90120754,96.909,96.86,3.41186949]
[1770202149527,3.90120754,96.909,96.874,9.3038]
[1770202149731,62.0,96.9,96.874,9.3038]
[1770202149933,3.98711457,96.923,96.88,3.41186949]
[1770202151032,62.0,96.91,96.88,3.41186949]
[1770202151833,62.0,96.91,96.88,12.71506949]
[1770202153140,9.297,96.945,96.891,9.3022]
[1770202154037,62.0,96.93,96.891,9.3022]
[1770202155132,3.79656785,96.929,96.891,9.3022]
[1770202159237,3.79656785,96.929,96.885,3.50186712]
[1770202160741,3.79656785,96.929,96.888,9.3024]
[1770202161038,3.79656785,96.929,96.885,3.50186712]
[1770202161437,3.79656785,96.929,96.891,3.50165764]
[1770202162641,3.91927165,96.952,96.908,3.45074047]
[1770202163846,3.91927165,96.952,96.909,9.3004]
[1770202165641,62.0,96.94,96.909,9.3004]
[1770202165844,62.0,96.94,96.901,9.3012]
[1770202165845,3.91927165,96.939,96.901,9.3012]
[1770202166044,3.91927165,96.939,96.89,3.41186949]
[1770202166550,3.91927165,96.939,96.89,6.8400526]
[1770202166748,3.91927165,96.939,96.891,3.42818311]
[1770202167045,3.91927165,96.939,96.907,9.3007]
[1770202168949,3.91927165,96.939,96.899,9.3014]
[1770202175151,3.91927165,96.937,96.891,3.42818311]
[1770202175756,3.91927165,96.926,96.88,3.41186949]
[1770202175958,3.91927165,96.926,96.878,3.50889151]
[1770202176860,3.91927165,96.924,96.878,3.50889151]
[1770202178462,3.91927165,96.924,96.88,3.41186949]
[1770202178762,3.91927165,96.924,96.88,6.91815305]
[1770202179163,3.91927165,96.924,96.881,3.50628356]
[1770202179464,3.91927165,96.918,96.87,3.41186949]
[1770202179958,3.91927165,96.918,96.87,6.91470844]
[1770202180761,3.91927165,96.915,96.87,6.91470844]
[1770202181161,3.91927165,96.915,96.872,9.304]
[1770202181461,3.91927165,96.915,96.88,6.91470844]
[1770202181860,3.91927165,96.915,96.88,3.50283895]
[1770202183260,3.91927165,96.915,96.88,6.91470844]
[1770202188363,3.91927165,96.93,96.89,3.41186949]
[1770202188566,62.0,96.94,96.9,3.41186949]
[1770202189161,3.91927165,96.939,96.9,3.41186949]
[1770202189966,3.91927165,96.939,96.897,12.78047026]
[1770202190364,3.91927165,96.938,96.89,3.41186949]
[1770202190570,3.91927165,96.938,96.885,3.47887026]
[1770202190968,3.78958437,96.929,96.877,3.47823104]
[1770202192669,9.2987,96.928,96.877,3.47823104]
[1770202192873,3.78958437,96.927,96.877,3.47823104]
[1770202193073,3.78958437,96.927,96.853,95.27516006]
[1770202193074,3.78958437,96.919,96.864,3.47304491]
[1770202194469,3.78958437,96.915,96.864,3.47304491]
[1770202196175,3.78958437,96.915,96.871,3.45809052]
[1770202197679,3.78958437,96.915,96.871,12.76219052]
[1770202200271,3.90147819,96.911,96.859,12.68636379]
[1770202200477,3.90147819,96.911,96.86,6.79307914]
[1770202200677,3.90147819,96.911,96.861,3.38116379]
[1770202201677,3.90147819,96.911,96.862,9.3049]
[1770202201872,3.90147819,96.911,96.862,12.68556597]
[1770202202479,3.90147819,96.911,96.863,3.38066597]
[1770202203276,3.90147819,96.911,96.842,12.87516006]
[1770202203277,82.4,96.937,96.881,3.38066597]
[1770202203581,65.90147819,96.94,96.901,3.38066597]
[1770202204384,3.90147819,96.939,96.901,3.38066597]
[1770202204580,62.0,96.94,96.911,3.3103536]
[1770202204783,3.90147819,96.939,96.9,3.41191535]
[1770202204978,3.90147819,96.939,96.893,3.3103536]
[1770202205683,62.0,96.94,96.902,3.3103536]
[1770202206185,62.0,96.94,96.858,19.28949446]
[1770202206186,3.90147819,96.929,96.871,9.6303269]
[1770202206380,3.90147819,96.929,96.871,3.33039565]
[1770202206686,3.90147819,96.927,96.875,9.3037]
[1770202207091,3.90147819,96.927,96.881,3.33039565]
[1770202207280,3.90147819,96.939,96.891,3.33039565]
[1770202208687,3.90147819,96.937,96.892,9.3021]
[1770202211691,3.90147819,96.937,96.892,12.66661346]
[1770202213284,3.90147819,96.937,96.898,9.3015]
[1770202219496,3.90147819,96.937,96.893,3.37560043]
[1770202221496,3.89409188,96.932,96.882,3.38563573]
[1770202222792,65.41191535,96.94,96.882,3.38563573]
[1770202222793,3.89409188,96.93,96.882,3.38563573]
[1770202224692,3.89409188,96.93,96.891,3.35249263]
[1770202227399,3.89409188,96.93,96.893,3.36331607]
[1770202227596,3.89409188,96.93,96.9,3.41191535]
[1770202227790,3.89409188,96.93,96.893,3.36331607]
[1770202230493,3.89409188,96.929,96.881,3.35228094]
[1770202231199,3.89409188,96.929,96.885,9.3027]
[1770202231393,3.89409188,96.929,96.885,12.65498094]
[1770202231899,3.89409188,96.929,96.886,3.3462669]
[1770202238503,3.89409188,96.925,96.878,9.3034]
[1770202239007,3.89409188,96.925,96.879,3.3516562]
[1770202239206,3.89409188,96.916,96.867,9.6303269]
[1770202239405,3.89409188,96.916,96.866,3.3516562]
[1770202240808,3.89409188,96.906,96.866,3.3516562]
[1770202247217,3.89409188,96.906,96.868,3.29108636]
[1770202256327,3.89409188,96.906,96.869,9.3043]
[1770202257029,3.89409188,96.906,96.877,9.3035]
[1770202257230,3.68125305,96.925,96.881,3.36243245]
[1770202258733,3.68125305,96.925,96.884,9.3028]
[1770202259831,3.68125305,96.925,96.885,3.37429566]
[1770202269338,3.68125305,96.925,96.89,3.41223553]
[1770202269831,3.68125305,96.925,96.885,3.37429566]
[1770202277249,3.68125305,96.925,96.888,3.59100673]
[1770202278647,3.68125305,96.925,96.891,3.54729414]
[1770202282046,62.0,96.94,96.897,3.56171527]
[1770202282248,62.0,96.94,96.911,3.56171527]
[1770202284259,62.0,96.94,96.837,31.01]
[1770202284260,65.7739449,96.94,96.901,3.59797215]
[1770202286762,3.7739449,96.939,96.901,3.59797215]
[1770202287156,3.7739449,96.939,96.89,13.04256243]
[1770202287359,3.7739449,96.939,96.889,3.58943089]
[1770202288363,3.7739449,96.928,96.876,9.6303269]
[1770202288558,3.7739449,96.928,96.872,3.57919956]
[1770202289961,3.7739449,96.918,96.872,3.57919956]
[1770202292460,3.7739449,96.914,96.872,3.57919956]
[1770202293460,3.7739449,96.914,96.88,3.41223553]
[1770202295166,62.0,96.94,96.901,3.65439557]
[1770202295466,62.0,96.94,96.911,3.65439557]
[1770202297660,3.7739449,96.983,96.931,3.65974954]
[1770202298063,3.7739449,96.983,96.94,3.41223553]
[1770202298663,49.0,96.97,96.94,3.41223553]
[1770202299061,3.7739449,96.982,96.94,3.41223553]
[1770202299367,3.7739449,96.982,96.931,3.65974954]
[1770202299967,3.7739449,96.982,96.94,3.41223553]
[1770202302064,49.0,96.97,96.94,3.41223553]
[1770202303168,49.0,96.97,96.931,3.65974954]
[1770202303671,49.0,96.97,96.941,3.67275505]
[1770202304261,49.0,96.97,96.94,3.41223553]
[1770202306567,49.0,96.97,96.941,3.7209353]
[1770202307371,49.0,96.97,96.942,9.2972]
[1770202308274,49.0,96.97,96.942,13.00461531]
[1770202308774,49.0,96.97,96.95,3.41223553]
[1770202309672,49.0,96.97,96.943,3.70741531]
[1770202314077,49.0,96.97,96.944,9.2971]
[1770202314269,3.79881145,97.002,96.95,3.41223553]
[1770202314469,3.79881145,97.002,96.96,3.41223553]
[1770202314774,3.79881145,97.002,96.967,9.2948]
[1770202318376,18.64817747,97.014,96.96,3.4050504]
[1770202318778,18.64817747,97.014,96.965,9.2951]
[1770202319781,18.61619849,97.009,96.965,9.2951]
[1770202320576,3.4050504,97.01,96.922,18.5985]
[1770202320577,18.61619849,96.999,96.953,9.2962]
[1770202321481,18.61619849,96.999,96.945,9.297]
[1770202322584,18.60305612,96.996,96.945,9.297]
[1770202323882,18.57142622,96.994,96.945,9.297]
[1770202324485,3.4050504,97.0,96.945,9.297]
[1770202324486,18.57142622,96.991,96.945,9.297]
[1770202325078,18.57142622,96.979,96.911,9.6303269]
[1770202325375,18.57142622,96.959,96.89,3.4050504]
[1770202326388,18.57142622,96.959,96.9,3.4050504]
[1770202326784,18.57142622,96.959,96.913,9.3]
[1770202327380,9.2946,96.971,96.923,9.2991]
[1770202327587,18.57482066,96.972,96.92,3.4050504]
[1770202327887,18.61187834,96.994,96.92,3.4050504]
[1770202328188,18.61187834,96.994,96.93,3.4050504]
[1770202328688,18.61187834,96.99,96.938,9.2977]
[1770202329589,18.61187834,96.99,96.947,9.2968]
[1770202331288,18.60016385,97.009,96.94,3.4050504]
[1770202331487,18.60016385,97.009,96.95,3.4050504]
[1770202332589,18.60016385,97.009,96.94,3.4050504]
[1770202332791,3.4050504,97.01,96.925,18.5979]
[1770202332792,18.59126298,96.999,96.925,18.5979]
[1770202332986,18.59126298,96.989,96.92,3.4050504]
[1770202333186,18.59126298,96.989,96.93,9.2984]
[1770202333687,18.59126298,96.989,96.922,9.2992]
[1770202335696,18.59718835,96.979,96.922,9.2992]
[1770202335893,18.59718835,96.979,96.91,12.7053504]
[1770202336695,9.2939,96.978,96.91,12.7053504]
[1770202336894,18.61781337,96.977,96.91,12.7053504]
[1770202337393,18.61781337,96.977,96.92,3.4050504]
[1770202337594,18.61781337,96.977,96.917,9.2996]
[1770202338195,18.61914583,96.975,96.91,3.4050504]
[1770202338893,18.61914583,96.973,96.911,9.3003]
[1770202339887,18.60191251,96.971,96.911,9.3003]
[1770202340698,18.60191251,96.969,96.911,9.3003]
[1770202342399,18.60191251,96.969,96.91,3.4050504]
[1770202342597,18.60029476,96.966,96.91,3.4050504]
[1770202342989,18.60029476,96.966,96.912,9.3002]
[1770202344602,18.63811157,96.959,96.89,3.4050504]
[1770202344792,18.63811157,96.949,96.883,9.6303269]
[1770202344998,18.63811157,96.949,96.88,3.4050504]
[1770202345801,18.63811157,96.937,96.883,9.303]
[1770202347104,18.63811157,96.937,96.89,9.3023]
[1770202349400,18.62318079,96.935,96.89,9.3023]
[1770202351400,18.62318079,96.935,96.89,3.4050504]
[1770202351601,18.62360112,96.955,96.91,3.4050504]
[1770202352007,18.62360112,96.955,96.927,9.2987]
[1770202353310,18.62904624,96.984,96.93,3.4050504]
[1770202353513,3.4050504,97.01,96.881,82.38]
[1770202353514,3.4050504,97.01,96.94,3.4050504]
[1770202354010,3.4050504,97.02,96.94,3.4050504]
[1770202354708,3.4050504,97.02,96.96,9.2955]
[1770202354914,3.4050504,97.01,96.96,9.2955]
[1770202355611,9.24757779,97.009,96.96,9.2955]
[1770202356813,9.22361051,96.989,96.913,18.6002]
[1770202357015,9.22361051,96.989,96.92,3.4050504]
[1770202357612,9.22361051,96.989,96.93,9.2985]
[1770202358418,9.22361051,96.989,96.93,12.7035504]
[1770202360719,9.26024333,96.979,96.92,3.4050504]
[1770202361920,9.26024333,96.979,96.93,3.4050504]
[1770202362126,9.26024333,96.979,96.94,3.4050504]
[1770202362327,18.5732,97.055,96.95,3.4050504]
[1770202362328,9.26563887,97.009,96.95,3.4050504]
[1770202362826,9.26563887,97.009,96.96,3.4050504]
[1770202363223,9.2911,97.007,96.95,3.4050504]
[1770202363424,9.26563887,97.006,96.94,12.7025504]
[1770202364921,9.254108,96.999,96.94,9.2975]
[1770202366623,9.25669395,96.998,96.94,9.2975]
[1770202366823,9.25669395,96.998,96.93,3.4050504]
[1770202367819,9.25669395,96.991,96.93,3.4050504]
[1770202368028,9.25704601,96.989,96.92,12.7044504]
[1770202368728,9.25704601,96.981,96.92,12.7044504]
[1770202368924,9.25704601,96.981,96.908,9.6303269]
[1770202369134,9.25704601,96.969,96.9,3.4050504]
[1770202369331,9.25704601,96.959,96.89,3.4050504]
[1770202369924,9.25704601,96.959,96.9,3.4050504]
[1770202370728,9.24306726,96.947,96.9,3.4050504]
[1770202371829,9.24306726,96.947,96.91,3.4050504]